[Event "*** SCC Grand Prix: Titled Tuesday Blitz"]
[Site "Chess.com"]
[Date "2020.08.04"]
[Round "4"]
[White "AldokhinIvan"]
[Black "Zarikovs1999"]
[Result "1/2-1/2"]
[WhiteElo "2534"]
[BlackElo "2374"]
[TimeControl "180+1"]
[EndTime "14:23:53 PDT"]
[Termination "Game drawn - insufficient material"]

1. e4 {[%clk 0:03:00]} 1... c5 {[%clk 0:03:00]} 2. Nf3 {[%clk 0:03:00.3]} 2...
Nc6 {[%clk 0:03:00.4]} 3. d4 {[%clk 0:03:01.2]} 3... cxd4 {[%clk 0:03:00.9]} 4.
Nxd4 {[%clk 0:03:02.1]} 4... Nf6 {[%clk 0:03:01]} 5. Nc3 {[%clk 0:03:02]} 5...
d6 {[%clk 0:03:01]} 6. Bg5 {[%clk 0:03:00.8]} 6... e6 {[%clk 0:03:01.4]} 7. Qd2
{[%clk 0:03:01.3]} 7... Be7 {[%clk 0:03:01.8]} 8. O-O-O {[%clk 0:03:01.5]} 8...
a6 {[%clk 0:03:01.9]} 9. h4 {[%clk 0:03:01.7]} 9... Bd7 {[%clk 0:02:33.7]} 10.
Be2 {[%clk 0:03:00.4]} 10... b5 {[%clk 0:02:24.8]} 11. a3 {[%clk 0:02:56.6]}
11... h6 {[%clk 0:02:18.4]} 12. Bxf6 {[%clk 0:02:54.2]} 12... Bxf6 {[%clk
0:02:19.3]} 13. Nxc6 {[%clk 0:02:51.3]} 13... Bxc6 {[%clk 0:02:20.2]} 14. Qxd6
{[%clk 0:02:49.9]} 14... Qxd6 {[%clk 0:02:14]} 15. Rxd6 {[%clk 0:02:49.7]} 15...
Rc8 {[%clk 0:02:14.9]} 16. Bf3 {[%clk 0:02:35.4]} 16... Be5 {[%clk 0:02:10.5]}
17. Rd3 {[%clk 0:02:33.7]} 17... g5 {[%clk 0:01:59.7]} 18. hxg5 {[%clk
0:02:30.9]} 18... hxg5 {[%clk 0:02:00.6]} 19. Rxh8+ {[%clk 0:02:28.9]} 19...
Bxh8 {[%clk 0:02:01.5]} 20. Nd1 {[%clk 0:02:25]} 20... g4 {[%clk 0:01:57]} 21.
Bxg4 {[%clk 0:02:11.3]} 21... Bxe4 {[%clk 0:01:57.4]} 22. Rd2 {[%clk 0:02:11.9]}
22... Bxg2 {[%clk 0:01:47.3]} 23. f3 {[%clk 0:02:11.6]} 23... Bf1 {[%clk
0:01:47.9]} 24. b3 {[%clk 0:02:00.7]} 24... Be5 {[%clk 0:01:41.7]} 25. Ne3
{[%clk 0:02:00]} 25... f5 {[%clk 0:01:02.9]} 26. Nxf1 {[%clk 0:01:13.7]} 26...
fxg4 {[%clk 0:01:03.8]} 27. Rg2 {[%clk 0:01:03.3]} 27... gxf3 {[%clk 0:00:54.5]}
28. Rg8+ {[%clk 0:00:57.5]} 28... Kd7 {[%clk 0:00:54.3]} 29. Rxc8 {[%clk
0:00:58.4]} 29... Kxc8 {[%clk 0:00:55.2]} 30. Kd2 {[%clk 0:00:58.8]} 30... Bd4
{[%clk 0:00:53.4]} 31. Nh2 {[%clk 0:00:48.7]} 31... f2 {[%clk 0:00:48.8]} 32.
Ke2 {[%clk 0:00:48.9]} 32... Kd7 {[%clk 0:00:18.8]} 33. Ng4 {[%clk 0:00:48.8]}
33... Bc5 {[%clk 0:00:16]} 34. Nxf2 {[%clk 0:00:35.1]} 34... Bxa3 {[%clk
0:00:15.8]} 35. Kd3 {[%clk 0:00:35.1]} 35... Bd6 {[%clk 0:00:12.8]} 36. Ne4
{[%clk 0:00:36]} 36... Kc6 {[%clk 0:00:12.7]} 37. c4 {[%clk 0:00:33.9]} 37...
Bc7 {[%clk 0:00:11.6]} 38. Ng5 {[%clk 0:00:32.7]} 38... Kd6 {[%clk 0:00:08.7]}
39. Ne4+ {[%clk 0:00:29]} 39... Kc6 {[%clk 0:00:08.8]} 40. Ng5 {[%clk
0:00:29.2]} 40... e5 {[%clk 0:00:09.3]} 41. Ne6 {[%clk 0:00:28.4]} 41... Bd6
{[%clk 0:00:08.7]} 42. Nd8+ {[%clk 0:00:26.8]} 42... Kc5 {[%clk 0:00:06.6]} 43.
Nb7+ {[%clk 0:00:26.1]} 43... Kc6 {[%clk 0:00:06.6]} 44. Nd8+ {[%clk 0:00:22.5]}
44... Kb6 {[%clk 0:00:06.9]} 45. Ke4 {[%clk 0:00:20.1]} 45... bxc4 {[%clk
0:00:03.2]} 46. bxc4 {[%clk 0:00:21]} 46... a5 {[%clk 0:00:01.9]} 47. Kd5 {[%clk
0:00:21.1]} 47... Bb8 {[%clk 0:00:02.3]} 48. c5+ {[%clk 0:00:21]} 48... Kb5
{[%clk 0:00:02.8]} 49. Nc6 {[%clk 0:00:20.5]} 49... Bc7 {[%clk 0:00:02.7]} 50.
Na7+ {[%clk 0:00:18.9]} 50... Kb4 {[%clk 0:00:02.9]} 51. Nc6+ {[%clk 0:00:19]}
51... Kb3 {[%clk 0:00:02.3]} 52. Nxa5+ {[%clk 0:00:12.1]} 52... Bxa5 {[%clk
0:00:01.6]} 53. Kxe5 {[%clk 0:00:12.5]} 53... Kb4 {[%clk 0:00:02.1]} 54. Kd6
{[%clk 0:00:11.2]} 54... Kb5 {[%clk 0:00:02.5]} 55. c6 {[%clk 0:00:11.3]} 55...
Bb6 {[%clk 0:00:02.8]} 56. Kd7 {[%clk 0:00:11.5]} 56... Kc5 {[%clk 0:00:02.7]}
57. c7 {[%clk 0:00:11.9]} 57... Bxc7 {[%clk 0:00:02.9]} 1/2-1/2

[Event "*** SCC Grand Prix: Titled Tuesday Blitz"]
[Site "Chess.com"]
[Date "2020.08.04"]
[Round "4"]
[White "StockholmMissile"]
[Black "peixe64"]
[Result "0-1"]
[WhiteElo "2457"]
[BlackElo "2323"]
[TimeControl "180+1"]
[EndTime "14:23:53 PDT"]
[Termination "peixe64 won on time"]

1. d4 {[%clk 0:03:00.9]} 1... Nf6 {[%clk 0:03:00.1]} 2. c4 {[%clk 0:02:59.2]}
2... g6 {[%clk 0:03:00.2]} 3. Nc3 {[%clk 0:02:59]} 3... d5 {[%clk 0:03:00.2]} 4.
Nf3 {[%clk 0:02:58.9]} 4... Bg7 {[%clk 0:03:00.2]} 5. h4 {[%clk 0:02:59.2]} 5...
h5 {[%clk 0:02:54.9]} 6. Bg5 {[%clk 0:02:58.1]} 6... Ne4 {[%clk 0:02:52.6]} 7.
e3 {[%clk 0:02:52.9]} 7... Nxg5 {[%clk 0:02:49.4]} 8. hxg5 {[%clk 0:02:51.3]}
8... dxc4 {[%clk 0:02:41.1]} 9. Bxc4 {[%clk 0:02:52.2]} 9... c5 {[%clk
0:02:33.5]} 10. dxc5 {[%clk 0:02:44.3]} 10... Qa5 {[%clk 0:02:22.3]} 11. Qb3
{[%clk 0:02:42.7]} 11... O-O {[%clk 0:02:13.9]} 12. O-O {[%clk 0:02:26.6]} 12...
Qxc5 {[%clk 0:02:05.5]} 13. Ne4 {[%clk 0:02:21.1]} 13... Qf5 {[%clk 0:01:53.2]}
14. Ng3 {[%clk 0:02:19.7]} 14... Qg4 {[%clk 0:01:49.3]} 15. Ne2 {[%clk
0:01:44.3]} 15... Nc6 {[%clk 0:01:42.3]} 16. Rac1 {[%clk 0:01:28.9]} 16... h4
{[%clk 0:01:09.8]} 17. Nf4 {[%clk 0:01:19.5]} 17... h3 {[%clk 0:00:48]} 18. Nxh3
{[%clk 0:01:15.5]} 18... Ne5 {[%clk 0:00:39.9]} 19. Nxe5 {[%clk 0:01:09.7]}
19... Bxe5 {[%clk 0:00:40.8]} 20. f4 {[%clk 0:01:04.6]} 20... Bd6 {[%clk
0:00:31.2]} 21. Qd1 {[%clk 0:00:54]} 21... Qh4 {[%clk 0:00:24.6]} 22. Qe1 {[%clk
0:00:49.4]} 22... Qh7 {[%clk 0:00:17.9]} 23. Nf2 {[%clk 0:00:45.6]} 23... Bf5
{[%clk 0:00:17]} 24. Bd3 {[%clk 0:00:43.5]} 24... Be6 {[%clk 0:00:15.5]} 25. b3
{[%clk 0:00:38.4]} 25... Qh5 {[%clk 0:00:12.3]} 26. Qe2 {[%clk 0:00:36]} 26...
Qh4 {[%clk 0:00:12.1]} 27. Ne4 {[%clk 0:00:34.2]} 27... Bg4 {[%clk 0:00:12.1]}
28. Qf2 {[%clk 0:00:33.1]} 28... Qh5 {[%clk 0:00:10.2]} 29. Nxd6 {[%clk
0:00:31.3]} 29... exd6 {[%clk 0:00:11.1]} 30. Rc2 {[%clk 0:00:29.3]} 30... Kh7
{[%clk 0:00:11.5]} 31. Be2 {[%clk 0:00:21.5]} 31... Rh8 {[%clk 0:00:11.8]} 32.
Bxg4 {[%clk 0:00:21.7]} 32... Qxg4 {[%clk 0:00:12.4]} 33. Qf3 {[%clk 0:00:22.3]}
33... Qh4 {[%clk 0:00:10.7]} 34. Qh3 {[%clk 0:00:16.7]} 34... Qxh3 {[%clk
0:00:11.2]} 35. gxh3 {[%clk 0:00:17.6]} 35... Kg7 {[%clk 0:00:12]} 36. Kg2
{[%clk 0:00:17.2]} 36... Rae8 {[%clk 0:00:10.6]} 37. Rf3 {[%clk 0:00:16.6]}
37... d5 {[%clk 0:00:10.1]} 38. Rd2 {[%clk 0:00:16.5]} 38... Rd8 {[%clk
0:00:09.4]} 39. Rf1 {[%clk 0:00:16.2]} 39... Rhe8 {[%clk 0:00:09.9]} 40. Kf2
{[%clk 0:00:13.9]} 40... Re4 {[%clk 0:00:09.6]} 41. Rfd1 {[%clk 0:00:13.3]}
41... Rc8 {[%clk 0:00:08.1]} 42. Rxd5 {[%clk 0:00:13]} 42... Rc2+ {[%clk
0:00:08.3]} 43. R1d2 {[%clk 0:00:13.2]} 43... Rc3 {[%clk 0:00:08.8]} 44. R5d3
{[%clk 0:00:13.1]} 44... Rc1 {[%clk 0:00:09.2]} 45. Kf3 {[%clk 0:00:13.1]} 45...
Re7 {[%clk 0:00:08.7]} 46. Re2 {[%clk 0:00:09.9]} 46... Rh1 {[%clk 0:00:08.5]}
47. Kg2 {[%clk 0:00:09.9]} 47... Ra1 {[%clk 0:00:08.1]} 48. e4 {[%clk 0:00:10]}
48... Rc7 {[%clk 0:00:08.4]} 49. f5 {[%clk 0:00:08.5]} 49... Rcc1 {[%clk
0:00:08.9]} 50. f6+ {[%clk 0:00:07.7]} 50... Kh7 {[%clk 0:00:09.5]} 51. Kf3
{[%clk 0:00:07.9]} 51... Rf1+ {[%clk 0:00:09.6]} 52. Ke3 {[%clk 0:00:06.6]}
52... Rh1 {[%clk 0:00:08.4]} 53. Kd4 {[%clk 0:00:04.1]} 53... Rac1 {[%clk
0:00:07.3]} 54. Rg2 {[%clk 0:00:02.1]} 54... Rc8 {[%clk 0:00:07.2]} 0-1

[Event "*** SCC Grand Prix: Titled Tuesday Blitz"]
[Site "Chess.com"]
[Date "2020.08.04"]
[Round "4"]
[White "German_Bazeev"]
[Black "shnitez"]
[Result "1-0"]
[WhiteElo "2736"]
[BlackElo "2485"]
[TimeControl "180+1"]
[EndTime "14:23:57 PDT"]
[Termination "German_Bazeev won by resignation"]

1. d4 {[%clk 0:02:40.8]} 1... Nf6 {[%clk 0:02:57.5]} 2. Nf3 {[%clk 0:02:40.1]}
2... e6 {[%clk 0:02:57.2]} 3. c4 {[%clk 0:02:39.4]} 3... b6 {[%clk 0:02:56.5]}
4. Nc3 {[%clk 0:02:39.4]} 4... Bb7 {[%clk 0:02:56.9]} 5. Bg5 {[%clk 0:02:39.2]}
5... Bb4 {[%clk 0:02:56.9]} 6. Nd2 {[%clk 0:02:39.6]} 6... h6 {[%clk 0:02:54.4]}
7. Bh4 {[%clk 0:02:39.4]} 7... Qe7 {[%clk 0:02:40.6]} 8. Rc1 {[%clk 0:02:36.3]}
8... c5 {[%clk 0:02:31.5]} 9. dxc5 {[%clk 0:02:18.4]} 9... bxc5 {[%clk
0:02:29.4]} 10. e4 {[%clk 0:02:11.6]} 10... g5 {[%clk 0:02:20.3]} 11. Bg3 {[%clk
0:02:11.4]} 11... Nxe4 {[%clk 0:02:11.1]} 12. Ndxe4 {[%clk 0:02:04.9]} 12...
Bxe4 {[%clk 0:02:11.1]} 13. a3 {[%clk 0:01:56.1]} 13... Bxc3+ {[%clk 0:01:52.5]}
14. Rxc3 {[%clk 0:01:57]} 14... Nc6 {[%clk 0:01:19.1]} 15. Bd6 {[%clk
0:01:55.7]} 15... Qf6 {[%clk 0:01:18.8]} 16. Bxc5 {[%clk 0:01:54.2]} 16... Qe5
{[%clk 0:01:05]} 17. Be3 {[%clk 0:01:51.3]} 17... O-O {[%clk 0:01:02.6]} 18. h4
{[%clk 0:01:44.7]} 18... Bg6 {[%clk 0:00:40.5]} 19. hxg5 {[%clk 0:01:42.5]}
19... hxg5 {[%clk 0:00:41.4]} 20. Qg4 {[%clk 0:01:21]} 20... f6 {[%clk
0:00:38.6]} 21. Qg3 {[%clk 0:01:12.5]} 21... Qxg3 {[%clk 0:00:31.7]} 22. fxg3
{[%clk 0:01:13.4]} 22... Ne5 {[%clk 0:00:29.5]} 23. b4 {[%clk 0:01:11.6]} 23...
Rfc8 {[%clk 0:00:22.8]} 24. Be2 {[%clk 0:01:02.3]} 24... d5 {[%clk 0:00:21.8]}
25. c5 {[%clk 0:00:58.8]} 25... Nf7 {[%clk 0:00:20.5]} 26. O-O {[%clk
0:00:51.3]} 26... Kg7 {[%clk 0:00:19.5]} 27. Ba6 {[%clk 0:00:46.2]} 27... Rc7
{[%clk 0:00:16.2]} 28. Rd1 {[%clk 0:00:34.5]} 28... Be4 {[%clk 0:00:15.9]} 29.
c6 {[%clk 0:00:28.7]} 29... e5 {[%clk 0:00:14]} 30. Bb7 {[%clk 0:00:28.5]} 30...
Rb8 {[%clk 0:00:12.5]} 31. Bxa7 {[%clk 0:00:26.7]} 31... Rbxb7 {[%clk
0:00:12.3]} 32. cxb7 {[%clk 0:00:27.6]} 32... Rxb7 {[%clk 0:00:12.4]} 33. Bf2
{[%clk 0:00:26.2]} 33... d4 {[%clk 0:00:12.2]} 34. Rc5 {[%clk 0:00:21.3]} 34...
Nd6 {[%clk 0:00:06.5]} 35. Bxd4 {[%clk 0:00:18]} 35... exd4 {[%clk 0:00:05.8]}
36. Rxd4 {[%clk 0:00:18.9]} 36... Rb6 {[%clk 0:00:05]} 37. a4 {[%clk 0:00:17.2]}
37... f5 {[%clk 0:00:03.2]} 38. a5 {[%clk 0:00:17.5]} 38... Ra6 {[%clk
0:00:03.4]} 39. g4 {[%clk 0:00:11.3]} 39... Kf6 {[%clk 0:00:03]} 40. gxf5 {[%clk
0:00:11.5]} 40... Bxf5 {[%clk 0:00:03.5]} 41. Rd1 {[%clk 0:00:05.2]} 41... Ke6
{[%clk 0:00:02.9]} 42. Re1+ {[%clk 0:00:05.2]} 42... Ne4 {[%clk 0:00:02.6]} 43.
Ra1 {[%clk 0:00:06.1]} 43... Nxc5 {[%clk 0:00:02]} 44. bxc5 {[%clk 0:00:06.7]}
44... Kd5 {[%clk 0:00:02.6]} 45. Rd1+ {[%clk 0:00:05.9]} 45... Kc6 {[%clk
0:00:02.7]} 46. Rf1 {[%clk 0:00:06.8]} 46... Kxc5 {[%clk 0:00:02.9]} 47. Rxf5+
{[%clk 0:00:06.8]} 47... Kb4 {[%clk 0:00:03.8]} 48. Rxg5 {[%clk 0:00:07.3]}
48... Rxa5 {[%clk 0:00:04.3]} 49. Rxa5 {[%clk 0:00:07.3]} 49... Kxa5 {[%clk
0:00:05.2]} 50. Kf2 {[%clk 0:00:07.9]} 50... Kb6 {[%clk 0:00:06.1]} 51. Kf3
{[%clk 0:00:08.6]} 51... Kc6 {[%clk 0:00:06.7]} 52. Kf4 {[%clk 0:00:09.2]} 52...
Kd6 {[%clk 0:00:07.6]} 53. Kf5 {[%clk 0:00:09.8]} 53... Ke7 {[%clk 0:00:08.5]}
54. Kg6 {[%clk 0:00:10.3]} 54... Kf8 {[%clk 0:00:09.1]} 55. Kf6 {[%clk
0:00:10.7]} 55... Kg8 {[%clk 0:00:08.8]} 56. Kg6 {[%clk 0:00:10.5]} 56... Kf8
{[%clk 0:00:08.1]} 57. g4 {[%clk 0:00:08.4]} 57... Kg8 {[%clk 0:00:07.6]} 58. g5
{[%clk 0:00:07.3]} 58... Kh8 {[%clk 0:00:08.5]} 59. Kf7 {[%clk 0:00:05.7]} 59...
Kh7 {[%clk 0:00:08.4]} 60. g6+ {[%clk 0:00:06.1]} 1-0

[Event "*** SCC Grand Prix: Titled Tuesday Blitz"]
[Site "Chess.com"]
[Date "2020.08.04"]
[Round "4"]
[White "Fortitudine"]
[Black "rududuyk"]
[Result "1-0"]
[WhiteElo "2253"]
[BlackElo "2070"]
[TimeControl "180+1"]
[EndTime "14:24:05 PDT"]
[Termination "Fortitudine won by resignation"]

1. c4 {[%clk 0:03:00.9]} 1... e5 {[%clk 0:02:59.4]} 2. g3 {[%clk 0:03:00.5]}
2... Nc6 {[%clk 0:02:59.6]} 3. Bg2 {[%clk 0:03:00.8]} 3... Bc5 {[%clk
0:02:59.4]} 4. Nc3 {[%clk 0:02:59.7]} 4... d6 {[%clk 0:02:59.3]} 5. e3 {[%clk
0:02:59.8]} 5... f5 {[%clk 0:02:58.3]} 6. Nge2 {[%clk 0:02:59.7]} 6... Nf6
{[%clk 0:02:58.4]} 7. O-O {[%clk 0:02:59.5]} 7... O-O {[%clk 0:02:58]} 8. d4
{[%clk 0:02:58.6]} 8... Bb6 {[%clk 0:02:57.2]} 9. Nd5 {[%clk 0:02:55.4]} 9...
Nxd5 {[%clk 0:02:34.9]} 10. cxd5 {[%clk 0:02:56.3]} 10... Ne7 {[%clk 0:02:32.9]}
11. dxe5 {[%clk 0:02:52.9]} 11... dxe5 {[%clk 0:02:32.7]} 12. b3 {[%clk
0:02:43.6]} 12... Qe8 {[%clk 0:02:27.2]} 13. Bb2 {[%clk 0:02:42.1]} 13... Ng6
{[%clk 0:02:20.7]} 14. Nc3 {[%clk 0:02:03.3]} 14... f4 {[%clk 0:02:15]} 15. exf4
{[%clk 0:02:04.2]} 15... exf4 {[%clk 0:02:12.7]} 16. Na4 {[%clk 0:01:08.9]}
16... fxg3 {[%clk 0:01:40.8]} 17. hxg3 {[%clk 0:01:09.8]} 17... Bd7 {[%clk
0:01:09.6]} 18. Nxb6 {[%clk 0:01:08.5]} 18... axb6 {[%clk 0:01:10.5]} 19. Qd4
{[%clk 0:01:03.3]} 19... Qf7 {[%clk 0:01:08.3]} 20. Rac1 {[%clk 0:00:55.2]}
20... Bf5 {[%clk 0:00:58.1]} 21. a4 {[%clk 0:00:47.1]} 21... Rad8 {[%clk
0:00:56.8]} 22. Rfe1 {[%clk 0:00:42.1]} 22... c6 {[%clk 0:00:51.5]} 23. Qxb6
{[%clk 0:00:20.6]} 23... Ne7 {[%clk 0:00:24.7]} 24. d6 {[%clk 0:00:13.8]} 24...
Nd5 {[%clk 0:00:18.6]} 25. Qc5 {[%clk 0:00:09.8]} 25... Bg4 {[%clk 0:00:16.5]}
26. f4 {[%clk 0:00:08.5]} 26... Be6 {[%clk 0:00:14.2]} 27. Be5 {[%clk
0:00:08.5]} 27... Rd7 {[%clk 0:00:13.7]} 28. b4 {[%clk 0:00:08.4]} 28... Rfd8
{[%clk 0:00:13.2]} 29. b5 {[%clk 0:00:08.9]} 29... Nf6 {[%clk 0:00:09.7]} 30.
bxc6 {[%clk 0:00:08.4]} 30... bxc6 {[%clk 0:00:10.2]} 31. Bxc6 {[%clk
0:00:08.7]} 31... Ra7 {[%clk 0:00:09.8]} 32. Bb5 {[%clk 0:00:07.9]} 32... Ng4
{[%clk 0:00:09]} 33. Kg2 {[%clk 0:00:06.2]} 33... Nxe5 {[%clk 0:00:08.8]} 34.
Qxe5 {[%clk 0:00:05.5]} 34... Bd5+ {[%clk 0:00:08.8]} 35. Kg1 {[%clk 0:00:05.8]}
35... Rc8 {[%clk 0:00:07.5]} 36. d7 {[%clk 0:00:05.4]} 36... Rd8 {[%clk
0:00:06.6]} 37. Rc8 {[%clk 0:00:04.9]} 37... Rxd7 {[%clk 0:00:06.4]} 38. Bxd7
{[%clk 0:00:05]} 38... Qxd7 {[%clk 0:00:06.2]} 39. Rxd8+ {[%clk 0:00:05.5]}
39... Qxd8 {[%clk 0:00:07.1]} 40. Qe8+ {[%clk 0:00:06]} 40... Qxe8 {[%clk
0:00:07.1]} 41. Rxe8+ {[%clk 0:00:06.9]} 41... Kf7 {[%clk 0:00:08]} 42. Re5
{[%clk 0:00:07.5]} 42... Bc6 {[%clk 0:00:08.1]} 43. a5 {[%clk 0:00:07.8]} 43...
Bb7 {[%clk 0:00:07.7]} 44. Kf2 {[%clk 0:00:08.3]} 44... Kf6 {[%clk 0:00:07.6]}
45. Ke3 {[%clk 0:00:08.8]} 45... h6 {[%clk 0:00:08]} 46. Kd4 {[%clk 0:00:08.6]}
46... g5 {[%clk 0:00:08.3]} 47. fxg5+ {[%clk 0:00:09]} 47... hxg5 {[%clk
0:00:09.2]} 48. Rb5 {[%clk 0:00:09.4]} 48... Bc8 {[%clk 0:00:08.8]} 49. Rc5
{[%clk 0:00:09.5]} 49... Bb7 {[%clk 0:00:08.2]} 50. a6 {[%clk 0:00:08.6]} 50...
Ba8 {[%clk 0:00:07.2]} 51. a7 {[%clk 0:00:08]} 51... Ke6 {[%clk 0:00:06.1]} 52.
Rc8 {[%clk 0:00:07.4]} 52... Bb7 {[%clk 0:00:06.2]} 53. a8=Q {[%clk 0:00:08]}
53... Bxa8 {[%clk 0:00:06.5]} 54. Rxa8 {[%clk 0:00:08.9]} 1-0

[Event "*** SCC Grand Prix: Titled Tuesday Blitz"]
[Site "Chess.com"]
[Date "2020.08.04"]
[Round "4"]
[White "Carnivoras"]
[Black "igorkovalenko"]
[Result "1-0"]
[WhiteElo "2621"]
[BlackElo "2866"]
[TimeControl "180+1"]
[EndTime "14:24:12 PDT"]
[Termination "Carnivoras won by checkmate"]

1. d4 {[%clk 0:03:00.9]} 1... Nf6 {[%clk 0:02:26]} 2. c4 {[%clk 0:02:38.1]} 2...
e6 {[%clk 0:02:23.9]} 3. Nc3 {[%clk 0:02:37.8]} 3... Bb4 {[%clk 0:02:23.1]} 4.
e3 {[%clk 0:02:38.1]} 4... O-O {[%clk 0:02:22.9]} 5. Ne2 {[%clk 0:02:38.1]} 5...
c5 {[%clk 0:02:23.5]} 6. a3 {[%clk 0:02:34.4]} 6... Bxc3+ {[%clk 0:02:23.8]} 7.
Nxc3 {[%clk 0:02:34.9]} 7... d6 {[%clk 0:02:22.3]} 8. Be2 {[%clk 0:02:32.8]}
8... Nc6 {[%clk 0:02:22]} 9. O-O {[%clk 0:02:32.9]} 9... b6 {[%clk 0:02:20.1]}
10. Bf3 {[%clk 0:02:30.7]} 10... Bb7 {[%clk 0:02:20.2]} 11. d5 {[%clk
0:02:21.2]} 11... Ne5 {[%clk 0:02:20.3]} 12. Be2 {[%clk 0:02:21.1]} 12... exd5
{[%clk 0:02:18.7]} 13. cxd5 {[%clk 0:02:20.4]} 13... Re8 {[%clk 0:02:19.1]} 14.
e4 {[%clk 0:02:12.3]} 14... Ng6 {[%clk 0:02:18.9]} 15. f3 {[%clk 0:02:10.8]}
15... a6 {[%clk 0:02:18.9]} 16. a4 {[%clk 0:01:57.4]} 16... h5 {[%clk 0:02:18]}
17. Bg5 {[%clk 0:01:55.1]} 17... Qd7 {[%clk 0:02:12.1]} 18. Bxf6 {[%clk
0:01:19.2]} 18... gxf6 {[%clk 0:02:13]} 19. f4 {[%clk 0:01:17.5]} 19... f5
{[%clk 0:02:12.8]} 20. Bxh5 {[%clk 0:01:15.3]} 20... Kg7 {[%clk 0:02:05.2]} 21.
exf5 {[%clk 0:01:07.2]} 21... Qxf5 {[%clk 0:02:04.8]} 22. Qf3 {[%clk 0:01:00.5]}
22... Bc8 {[%clk 0:01:22.4]} 23. h3 {[%clk 0:00:49.4]} 23... Kh6 {[%clk
0:01:05.9]} 24. Bg4 {[%clk 0:00:47.5]} 24... Qf6 {[%clk 0:01:06.4]} 25. Kh1
{[%clk 0:00:47]} 25... Nh4 {[%clk 0:01:00.7]} 26. Qf2 {[%clk 0:00:41.4]} 26...
Bf5 {[%clk 0:00:56.4]} 27. Rae1 {[%clk 0:00:38.1]} 27... Bd3 {[%clk 0:00:53.3]}
28. Rg1 {[%clk 0:00:38.1]} 28... b5 {[%clk 0:00:50.6]} 29. axb5 {[%clk
0:00:31.1]} 29... axb5 {[%clk 0:00:51.5]} 30. Be2 {[%clk 0:00:19.9]} 30... Bxe2
{[%clk 0:00:44.2]} 31. Rxe2 {[%clk 0:00:20.2]} 31... Rxe2 {[%clk 0:00:18.6]} 32.
Nxe2 {[%clk 0:00:19.1]} 32... Re8 {[%clk 0:00:17.9]} 33. Ng3 {[%clk 0:00:18.1]}
33... Kh7 {[%clk 0:00:15.9]} 34. Qf1 {[%clk 0:00:15.7]} 34... Ng6 {[%clk
0:00:15.7]} 35. Qxb5 {[%clk 0:00:14.9]} 35... Re3 {[%clk 0:00:14.7]} 36. Nf1
{[%clk 0:00:13]} 36... Re1 {[%clk 0:00:13.6]} 37. Nh2 {[%clk 0:00:11.6]} 37...
Rxg1+ {[%clk 0:00:13.1]} 38. Kxg1 {[%clk 0:00:12.5]} 38... Qd4+ {[%clk
0:00:13.3]} 39. Kh1 {[%clk 0:00:11.6]} 39... Nxf4 {[%clk 0:00:13.7]} 40. Ng4
{[%clk 0:00:10.3]} 40... Qd1+ {[%clk 0:00:11.5]} 41. Kh2 {[%clk 0:00:10.1]}
41... Ne2 {[%clk 0:00:12.1]} 42. h4 {[%clk 0:00:06.3]} 42... Qg1+ {[%clk
0:00:11.7]} 43. Kh3 {[%clk 0:00:06.7]} 43... Qh1+ {[%clk 0:00:11.6]} 44. Nh2
{[%clk 0:00:07]} 44... Qe1 {[%clk 0:00:10.9]} 45. Qb3 {[%clk 0:00:04.6]} 45...
Ng1+ {[%clk 0:00:10.2]} 46. Kg4 {[%clk 0:00:04.7]} 46... Qe4+ {[%clk 0:00:10.5]}
47. Kg3 {[%clk 0:00:05.1]} 47... Ne2+ {[%clk 0:00:10.1]} 48. Kf2 {[%clk
0:00:05.6]} 48... Nd4 {[%clk 0:00:11]} 49. Qe3 {[%clk 0:00:05.6]} 49... Qc2+
{[%clk 0:00:11.1]} 50. Kg1 {[%clk 0:00:05.4]} 50... Qb1+ {[%clk 0:00:11.5]} 51.
Kf2 {[%clk 0:00:05.7]} 51... Qxb2+ {[%clk 0:00:11.7]} 52. Kf1 {[%clk 0:00:05.5]}
52... Qb1+ {[%clk 0:00:12.2]} 53. Kf2 {[%clk 0:00:05.9]} 53... Qf5+ {[%clk
0:00:12.8]} 54. Nf3 {[%clk 0:00:05.3]} 54... Qxd5 {[%clk 0:00:12.6]} 55. Qf4
{[%clk 0:00:04.3]} 55... Nxf3 {[%clk 0:00:12.4]} 56. gxf3 {[%clk 0:00:05.2]}
56... Kg7 {[%clk 0:00:12.4]} 57. Qg4+ {[%clk 0:00:05.3]} 57... Kh6 {[%clk
0:00:12.9]} 58. Qf4+ {[%clk 0:00:05.4]} 58... Kg6 {[%clk 0:00:13.4]} 59. Qg4+
{[%clk 0:00:05.6]} 59... Kf6 {[%clk 0:00:13.9]} 60. Qf4+ {[%clk 0:00:06.1]}
60... Ke6 {[%clk 0:00:14.1]} 61. Qg4+ {[%clk 0:00:04.2]} 61... Qf5 {[%clk
0:00:14.2]} 62. Qc4+ {[%clk 0:00:03.8]} 62... Kf6 {[%clk 0:00:14]} 63. Qc3+
{[%clk 0:00:03.7]} 63... Kg6 {[%clk 0:00:14.4]} 64. Qh8 {[%clk 0:00:03.8]} 64...
Qf6 {[%clk 0:00:14.4]} 65. Qg8+ {[%clk 0:00:03.8]} 65... Kh5 {[%clk 0:00:13.7]}
66. Qh7+ {[%clk 0:00:03.7]} 66... Qh6 {[%clk 0:00:13.9]} 67. Qf5+ {[%clk
0:00:04]} 67... Kxh4 {[%clk 0:00:14.3]} 68. Qg4# {[%clk 0:00:04.4]} 1-0